[Event "December 19 Early 2023"]
[Site "https://www.chess.com"]
[Date "2023.12.19"]
[Round "10"]
[White "Porozhnyak, Maya"]
[Black "Guimaraes, Wagner Peixoto"]
[Result "1/2-1/2"]
[Board "110"]
[TimeControl "180+1"]
[WhiteFideId "34115843"]
[BlackFideId "2100940"]
[WhiteElo "1932"]
[BlackElo "2140"]
[WhiteTeam "RUS"]
[BlackTeam "BRA"]
[WhiteClock "0:00:04"]
[BlackClock "0:00:02"]

1. e4 {[%clk 0:03:00]}  c5 {[%clk 0:02:57]} 2. Nf3 {[%clk 0:02:59]}  Nc6 {[%clk 0:02:57]} 3. d4 {[%clk 0:03:00]}  cxd4 {[%clk 0:02:57]} 4. c3 {[%clk 0:03:01]}  Nf6 {[%clk 0:02:57]} 5. Bd3 {[%clk 0:03:01]}  d6 {[%clk 0:02:54]} 6. h3 {[%clk 0:03:00]}  dxc3 {[%clk 0:02:52]} 7. Nxc3 {[%clk 0:03:01]}  g6 {[%clk 0:02:52]} 8. O-O {[%clk 0:03:01]}  Bg7 {[%clk 0:02:53]} 9. Qe2 {[%clk 0:03:02]}  O-O {[%clk 0:02:53]} 10. Rd1 {[%clk 0:03:02]}  a6 {[%clk 0:02:51]} 11. e5 {[%clk 0:02:57]}  dxe5 {[%clk 0:02:49]} 12. Bxg6 {[%clk 0:02:55]}  hxg6 {[%clk 0:02:34]} 13. Rxd8 {[%clk 0:02:54]}  Rxd8 {[%clk 0:02:35]} 14. Nxe5 {[%clk 0:02:50]}  Nxe5 {[%clk 0:02:34]} 15. Qxe5 {[%clk 0:02:51]}  Be6 {[%clk 0:02:34]} 16. Qc5 {[%clk 0:02:33]}  Nd5 {[%clk 0:02:19]} 17. Bd2 {[%clk 0:01:48]}  Rac8 {[%clk 0:02:06]} 18. Qa3 {[%clk 0:01:47]}  Nb6 {[%clk 0:01:49]} 19. Be1 {[%clk 0:01:28]}  Nc4 {[%clk 0:01:40]} 20. Qxe7 {[%clk 0:01:28]}  Nxb2 {[%clk 0:01:38]} 21. Qxb7 {[%clk 0:01:17]}  Nd3 {[%clk 0:01:27]} 22. Bd2 {[%clk 0:01:13]}  Nc5 {[%clk 0:01:22]} 23. Qb2 {[%clk 0:00:58]}  Na4 {[%clk 0:01:19]} 24. Qa3 {[%clk 0:00:56]}  Nxc3 {[%clk 0:01:13]} 25. Bxc3 {[%clk 0:00:56]}  Bxc3 {[%clk 0:00:58]} 26. Rc1 {[%clk 0:00:51]}  Be5 {[%clk 0:00:37]} 27. Re1 {[%clk 0:00:49]}  Bg7 {[%clk 0:00:30]} 28. Qxa6 {[%clk 0:00:45]}  Ra8 {[%clk 0:00:31]} 29. Qb6 {[%clk 0:00:45]}  Rdb8 {[%clk 0:00:28]} 30. Qc7 {[%clk 0:00:43]}  Rc8 {[%clk 0:00:25]} 31. Qb7 {[%clk 0:00:40]}  Rcb8 {[%clk 0:00:19]} 32. Qf3 {[%clk 0:00:38]}  Rxa2 {[%clk 0:00:16]} 33. Rd1 {[%clk 0:00:38]}  Rf8 {[%clk 0:00:14]} 34. h4 {[%clk 0:00:35]}  Ra5 {[%clk 0:00:13]} 35. g3 {[%clk 0:00:27]}  Ra4 {[%clk 0:00:11]} 36. Qe3 {[%clk 0:00:22]}  Ra5 {[%clk 0:00:10]} 37. Kh2 {[%clk 0:00:22]}  Rf5 {[%clk 0:00:10]} 38. Rd2 {[%clk 0:00:22]}  Kh7 {[%clk 0:00:09]} 39. f4 {[%clk 0:00:18]}  Bf6 {[%clk 0:00:08]} 40. Qa3 {[%clk 0:00:14]}  Rg8 {[%clk 0:00:07]} 41. Qf3 {[%clk 0:00:13]}  Bg7 {[%clk 0:00:06]} 42. Qe3 {[%clk 0:00:11]}  Rf6 {[%clk 0:00:06]} 43. Re2 {[%clk 0:00:11]}  Bf5 {[%clk 0:00:06]} 44. Re1 {[%clk 0:00:11]}  Re6 {[%clk 0:00:06]} 45. Qf2 {[%clk 0:00:11]}  Rxe1 {[%clk 0:00:07]} 46. Qxe1 {[%clk 0:00:12]}  Rd8 {[%clk 0:00:07]} 47. Qe2 {[%clk 0:00:10]}  Rd6 {[%clk 0:00:07]} 48. g4 {[%clk 0:00:11]}  Be6 {[%clk 0:00:06]} 49. h5 {[%clk 0:00:09]}  gxh5 {[%clk 0:00:06]} 50. Qe4+ {[%clk 0:00:09]}  Kg8 {[%clk 0:00:06]} 51. f5 {[%clk 0:00:09]}  hxg4 {[%clk 0:00:05]} 52. fxe6 {[%clk 0:00:09]}  Rxe6 {[%clk 0:00:06]} 53. Qxg4 {[%clk 0:00:09]}  Rg6 {[%clk 0:00:07]} 54. Qc8+ {[%clk 0:00:09]}  Kh7 {[%clk 0:00:07]} 55. Kh3 {[%clk 0:00:09]}  Rh6+ {[%clk 0:00:07]} 56. Kg4 {[%clk 0:00:09]}  Rg6+ {[%clk 0:00:07]} 57. Kf5 {[%clk 0:00:10]}  Rf6+ {[%clk 0:00:08]} 58. Ke4 {[%clk 0:00:11]}  Re6+ {[%clk 0:00:08]} 59. Kd5 {[%clk 0:00:12]}  Rg6 {[%clk 0:00:08]} 60. Qe8 {[%clk 0:00:12]}  Rf6 {[%clk 0:00:06]} 61. Qe4+ {[%clk 0:00:12]}  Rg6 {[%clk 0:00:07]} 62. Qh4+ {[%clk 0:00:11]}  Kg8 {[%clk 0:00:07]} 63. Ke4 {[%clk 0:00:10]}  Bf6 {[%clk 0:00:07]} 64. Qh5 {[%clk 0:00:10]}  Kg7 {[%clk 0:00:07]} 65. Qh1 {[%clk 0:00:10]}  Rh6 {[%clk 0:00:07]} 66. Qg2+ {[%clk 0:00:10]}  Rg6 {[%clk 0:00:07]} 67. Qf3 {[%clk 0:00:10]}  Rh6 {[%clk 0:00:07]} 68. Kf5 {[%clk 0:00:10]}  Rg6 {[%clk 0:00:08]} 69. Ke4 {[%clk 0:00:07]}  Rg5 {[%clk 0:00:08]} 70. Qf4 {[%clk 0:00:07]}  Re5+ {[%clk 0:00:07]} 71. Kd3 {[%clk 0:00:07]}  Rg5 {[%clk 0:00:07]} 72. Kc4 {[%clk 0:00:07]}  Rg6 {[%clk 0:00:07]} 73. Qf3 {[%clk 0:00:07]}  Rg5 {[%clk 0:00:07]} 74. Kd3 {[%clk 0:00:07]}  Rg6 {[%clk 0:00:08]} 75. Ke2 {[%clk 0:00:08]}  Rg5 {[%clk 0:00:08]} 76. Qf4 {[%clk 0:00:08]}  Rg6 {[%clk 0:00:08]} 77. Kf3 {[%clk 0:00:09]}  Rg5 {[%clk 0:00:08]} 78. Qc7 {[%clk 0:00:09]}  Rg6 {[%clk 0:00:08]} 79. Kf4 {[%clk 0:00:09]}  Rg5 {[%clk 0:00:08]} 80. Qc8 {[%clk 0:00:09]}  Rg6 {[%clk 0:00:08]} 81. Qh3 {[%clk 0:00:09]}  Rh6 {[%clk 0:00:08]} 82. Qg2+ {[%clk 0:00:09]}  Rg6 {[%clk 0:00:09]} 83. Qa2 {[%clk 0:00:09]}  Rh6 {[%clk 0:00:09]} 84. Ke4 {[%clk 0:00:09]}  Rg6 {[%clk 0:00:09]} 85. Kd5 {[%clk 0:00:09]}  Rh6 {[%clk 0:00:09]} 86. Kd6 {[%clk 0:00:10]}  Rg6 {[%clk 0:00:08]} 87. Kd7 {[%clk 0:00:11]}  Bg5 {[%clk 0:00:08]} 88. Ke8 {[%clk 0:00:11]}  Rf6 {[%clk 0:00:07]} 89. Qg2 {[%clk 0:00:11]}  Kg6 {[%clk 0:00:08]} 90. Qe4+ {[%clk 0:00:11]}  Kg7 {[%clk 0:00:07]} 91. Qg4 {[%clk 0:00:11]}  Kg6 {[%clk 0:00:07]} 92. Kd7 {[%clk 0:00:09]}  Rf4 {[%clk 0:00:06]} 93. Qg2 {[%clk 0:00:08]}  Rf6 {[%clk 0:00:05]} 94. Qe4+ {[%clk 0:00:08]}  Kg7 {[%clk 0:00:05]} 95. Qg4 {[%clk 0:00:08]}  Kg6 {[%clk 0:00:05]} 96. Ke8 {[%clk 0:00:08]}  Re6+ {[%clk 0:00:05]} 97. Kd7 {[%clk 0:00:06]}  Rf6 {[%clk 0:00:05]} 98. Qg3 {[%clk 0:00:06]}  Rf5 {[%clk 0:00:05]} 99. Qd3 {[%clk 0:00:06]}  Kf6 {[%clk 0:00:04]} 100. Qd6+ {[%clk 0:00:06]}  Kg7 {[%clk 0:00:04]} 101. Qd3 {[%clk 0:00:06]}  Rf6 {[%clk 0:00:04]} 102. Qd4 {[%clk 0:00:05]}  Kg6 {[%clk 0:00:02]} 103. Ke8 {[%clk 0:00:04]} 1/2-1/2

[Event "December 19 Early 2023"]
[Site "https://www.chess.com"]
[Date "2023.12.19"]
[Round "10"]
[White "Figorito, Nick"]
[Black "Semenova, Alina"]
[Result "1-0"]
[Board "114"]
[TimeControl "180+1"]
[WhiteFideId "30923689"]
[BlackFideId "24113875"]
[WhiteElo "2417"]
[BlackElo "1827"]
[WhiteTeam "USA"]
[BlackTeam "RUS"]
[WhiteClock "0:00:20"]
[BlackClock "0:00:00"]

1. Nf3 {[%clk 0:03:00]}  d5 {[%clk 0:02:49]} 2. g3 {[%clk 0:03:00]}  Nf6 {[%clk 0:02:43]} 3. Bg2 {[%clk 0:03:01]}  e6 {[%clk 0:02:44]} 4. O-O {[%clk 0:03:01]}  Be7 {[%clk 0:02:44]} 5. d4 {[%clk 0:03:01]}  O-O {[%clk 0:02:44]} 6. c4 {[%clk 0:03:02]}  dxc4 {[%clk 0:02:44]} 7. Ne5 {[%clk 0:03:01]}  Nc6 {[%clk 0:02:42]} 8. Nxc6 {[%clk 0:03:01]}  bxc6 {[%clk 0:02:43]} 9. Bxc6 {[%clk 0:03:02]}  Rb8 {[%clk 0:02:40]} 10. Bg2 {[%clk 0:02:50]}  c5 {[%clk 0:02:38]} 11. dxc5 {[%clk 0:02:42]}  Bxc5 {[%clk 0:02:39]} 12. Qc2 {[%clk 0:02:40]}  Qc7 {[%clk 0:02:37]} 13. Bf4 {[%clk 0:02:33]}  e5 {[%clk 0:02:35]} 14. Bg5 {[%clk 0:02:32]}  Ne8 {[%clk 0:02:31]} 15. Nc3 {[%clk 0:02:29]}  Be6 {[%clk 0:02:30]} 16. Nd5 {[%clk 0:02:22]}  Qa5 {[%clk 0:02:14]} 17. Bd2 {[%clk 0:02:04]}  Qd8 {[%clk 0:02:03]} 18. e4 {[%clk 0:01:55]}  Bd4 {[%clk 0:01:55]} 19. Bc3 {[%clk 0:01:53]}  Nc7 {[%clk 0:01:40]} 20. Bxd4 {[%clk 0:01:43]}  exd4 {[%clk 0:01:41]} 21. Qxc4 {[%clk 0:01:43]}  Rxb2 {[%clk 0:01:36]} 22. Qxd4 {[%clk 0:01:43]}  Rb7 {[%clk 0:01:27]} 23. Rfd1 {[%clk 0:01:41]}  Bxd5 {[%clk 0:01:27]} 24. exd5 {[%clk 0:01:40]}  Nb5 {[%clk 0:01:25]} 25. Qd3 {[%clk 0:01:37]}  Nd6 {[%clk 0:01:26]} 26. Rab1 {[%clk 0:01:35]}  Rxb1 {[%clk 0:01:15]} 27. Rxb1 {[%clk 0:01:36]}  Qa5 {[%clk 0:01:16]} 28. Qb3 {[%clk 0:01:17]}  g6 {[%clk 0:01:05]} 29. h4 {[%clk 0:01:14]}  Re8 {[%clk 0:01:01]} 30. a3 {[%clk 0:01:10]}  Kg7 {[%clk 0:00:56]} 31. Qb4 {[%clk 0:01:04]}  Qc7 {[%clk 0:00:44]} 32. Qd4+ {[%clk 0:00:59]}  Kg8 {[%clk 0:00:35]} 33. h5 {[%clk 0:00:53]}  Nf5 {[%clk 0:00:17]} 34. Qf6 {[%clk 0:00:49]}  Qd6 {[%clk 0:00:11]} 35. Qxd6 {[%clk 0:00:44]}  Nxd6 {[%clk 0:00:12]} 36. hxg6 {[%clk 0:00:42]}  hxg6 {[%clk 0:00:13]} 37. Rc1 {[%clk 0:00:40]}  Re7 {[%clk 0:00:11]} 38. Rc6 {[%clk 0:00:39]}  Rd7 {[%clk 0:00:10]} 39. Bh3 {[%clk 0:00:36]}  Rd8 {[%clk 0:00:11]} 40. Bg2 {[%clk 0:00:34]}  Rd7 {[%clk 0:00:10]} 41. Ra6 {[%clk 0:00:34]}  Nb5 {[%clk 0:00:09]} 42. a4 {[%clk 0:00:28]}  Nc3 {[%clk 0:00:09]} 43. d6 {[%clk 0:00:24]}  Kf8 {[%clk 0:00:00]} 44. Rc6 {[%clk 0:00:20]} 1-0

[Event "December 19 Early 2023"]
[Site "https://www.chess.com"]
[Date "2023.12.19"]
[Round "10"]
[White "Negron Lizarazo, Juan Sebastian"]
[Black "Shadhursshaan R"]
[Result "0-1"]
[Board "115"]
[TimeControl "180+1"]
[WhiteFideId "3936910"]
[BlackFideId "45024138"]
[WhiteElo "1647"]
[BlackElo "1760"]
[WhiteTeam "COL"]
[BlackTeam "IND"]
[WhiteClock "0:00:55"]
[BlackClock "0:00:32"]

1. e4 {[%clk 0:03:00]}  c6 {[%clk 0:02:24]} 2. d4 {[%clk 0:02:57]}  d5 {[%clk 0:02:24]} 3. e5 {[%clk 0:02:57]}  c5 {[%clk 0:02:22]} 4. c3 {[%clk 0:02:57]}  Nc6 {[%clk 0:02:21]} 5. Nf3 {[%clk 0:02:56]}  Bg4 {[%clk 0:02:21]} 6. Bb5 {[%clk 0:02:51]}  a6 {[%clk 0:02:19]} 7. Bxc6+ {[%clk 0:02:51]}  bxc6 {[%clk 0:02:20]} 8. O-O {[%clk 0:02:49]}  cxd4 {[%clk 0:02:19]} 9. cxd4 {[%clk 0:02:33]}  e6 {[%clk 0:02:19]} 10. b3 {[%clk 0:02:28]}  Ne7 {[%clk 0:02:16]} 11. Bb2 {[%clk 0:02:27]}  Ng6 {[%clk 0:02:16]} 12. Nbd2 {[%clk 0:02:23]}  Bb4 {[%clk 0:02:14]} 13. Qc2 {[%clk 0:02:22]}  Nf4 {[%clk 0:02:10]} 14. Qxc6+ {[%clk 0:02:19]}  Kf8 {[%clk 0:02:08]} 15. Qa4 {[%clk 0:02:11]}  Bxd2 {[%clk 0:02:05]} 16. Nxd2 {[%clk 0:02:05]}  Qg5 {[%clk 0:02:01]} 17. Qc6 {[%clk 0:01:26]}  Rd8 {[%clk 0:00:42]} 18. Qc2 {[%clk 0:01:12]}  Bf3 {[%clk 0:00:38]} 19. Ba3+ {[%clk 0:00:57]}  Kg8 {[%clk 0:00:34]} 20. g3 {[%clk 0:00:55]}  Ne2# {[%clk 0:00:32]} 0-1

[Event "December 19 Early 2023"]
[Site "https://www.chess.com"]
[Date "2023.12.19"]
[Round "10"]
[White "Dwilewicz, Katarzyna"]
[Black "Yushko, Olga"]
[Result "1-0"]
[Board "117"]
[TimeControl "180+1"]
[WhiteFideId "1148486"]
[BlackFideId "14114500"]
[WhiteElo "2098"]
[BlackElo "1891"]
[WhiteTeam "POL"]
[BlackTeam "UKR"]
[WhiteClock "0:01:25"]
[BlackClock "0:01:22"]

1. e4 {[%clk 0:03:00]}  e6 {[%clk 0:02:59]} 2. d4 {[%clk 0:02:59]}  d5 {[%clk 0:02:59]} 3. e5 {[%clk 0:02:59]}  c5 {[%clk 0:02:59]} 4. c3 {[%clk 0:03:00]}  Nc6 {[%clk 0:02:59]} 5. Nf3 {[%clk 0:02:58]}  Qb6 {[%clk 0:02:57]} 6. Be2 {[%clk 0:02:58]}  cxd4 {[%clk 0:02:57]} 7. cxd4 {[%clk 0:02:58]}  Nge7 {[%clk 0:02:57]} 8. Nc3 {[%clk 0:02:42]}  Nf5 {[%clk 0:02:54]} 9. Na4 {[%clk 0:02:42]}  Qc7 {[%clk 0:02:49]} 10. O-O {[%clk 0:02:38]}  Be7 {[%clk 0:02:47]} 11. b3 {[%clk 0:02:36]}  O-O {[%clk 0:02:47]} 12. Bb2 {[%clk 0:02:36]}  a6 {[%clk 0:02:42]} 13. Rc1 {[%clk 0:02:37]}  b5 {[%clk 0:02:40]} 14. Nc5 {[%clk 0:02:35]}  Bxc5 {[%clk 0:02:37]} 15. Rxc5 {[%clk 0:02:35]}  Qb6 {[%clk 0:02:37]} 16. Qd2 {[%clk 0:02:19]}  Bd7 {[%clk 0:02:25]} 17. Rfc1 {[%clk 0:02:18]}  a5 {[%clk 0:02:13]} 18. Rxb5 {[%clk 0:02:16]}  Qa7 {[%clk 0:02:10]} 19. Rbc5 {[%clk 0:02:16]}  Rfc8 {[%clk 0:02:08]} 20. Bb5 {[%clk 0:02:12]}  Nxe5 {[%clk 0:01:54]} 21. Rxc8+ {[%clk 0:02:04]}  Rxc8 {[%clk 0:01:48]} 22. Rxc8+ {[%clk 0:02:04]}  Bxc8 {[%clk 0:01:47]} 23. Nxe5 {[%clk 0:02:04]}  f6 {[%clk 0:01:43]} 24. Nc6 {[%clk 0:01:56]}  Qc7 {[%clk 0:01:36]} 25. Qxa5 {[%clk 0:01:47]}  Qf4 {[%clk 0:01:26]} 26. Qd8+ {[%clk 0:01:45]}  Kf7 {[%clk 0:01:27]} 27. Ne5+ {[%clk 0:01:26]}  fxe5 {[%clk 0:01:24]} 28. Be8+ {[%clk 0:01:27]}  Kf8 {[%clk 0:01:22]} 29. Bg6# {[%clk 0:01:25]} 1-0

[Event "December 19 Early 2023"]
[Site "https://www.chess.com"]
[Date "2023.12.19"]
[Round "10"]
[White "Lopusiewicz, Piotr"]
[Black "Tarasova, Viktoriya"]
[Result "0-1"]
[Board "122"]
[TimeControl "180+1"]
[WhiteFideId "1116029"]
[BlackFideId "4175840"]
[WhiteElo "2286"]
[BlackElo "2182"]
[WhiteTeam "POL"]
[BlackTeam "RUS"]
[WhiteClock "0:00:00"]
[BlackClock "0:00:53"]

1. d4 {[%clk 0:03:00]}  Nf6 {[%clk 0:02:57]} 2. c4 {[%clk 0:03:01]}  e6 {[%clk 0:02:57]} 3. Nf3 {[%clk 0:03:01]}  b6 {[%clk 0:02:57]} 4. g3 {[%clk 0:02:59]}  Ba6 {[%clk 0:02:57]} 5. Qc2 {[%clk 0:02:59]}  c5 {[%clk 0:02:56]} 6. d5 {[%clk 0:02:58]}  Bb7 {[%clk 0:02:52]} 7. Nc3 {[%clk 0:02:58]}  exd5 {[%clk 0:02:52]} 8. cxd5 {[%clk 0:02:58]}  Nxd5 {[%clk 0:02:50]} 9. Bg2 {[%clk 0:02:13]}  Be7 {[%clk 0:02:48]} 10. O-O {[%clk 0:02:05]}  O-O {[%clk 0:02:42]} 11. Nxd5 {[%clk 0:00:55]}  Bxd5 {[%clk 0:02:38]} 12. Ng5 {[%clk 0:00:54]}  Bxg5 {[%clk 0:02:37]} 13. Bxd5 {[%clk 0:00:55]}  Nc6 {[%clk 0:02:36]} 14. f4 {[%clk 0:00:55]}  Bf6 {[%clk 0:02:33]} 15. e3 {[%clk 0:00:53]}  Re8 {[%clk 0:02:25]} 16. Rd1 {[%clk 0:00:52]}  Qc7 {[%clk 0:02:21]} 17. a3 {[%clk 0:00:46]}  Rad8 {[%clk 0:02:17]} 18. Rb1 {[%clk 0:00:44]}  Ne7 {[%clk 0:02:16]} 19. e4 {[%clk 0:00:35]}  Nxd5 {[%clk 0:02:14]} 20. Rxd5 {[%clk 0:00:35]}  d6 {[%clk 0:02:13]} 21. Bd2 {[%clk 0:00:29]}  Re6 {[%clk 0:02:01]} 22. f5 {[%clk 0:00:20]}  Re5 {[%clk 0:01:50]} 23. Rxe5 {[%clk 0:00:19]}  Bxe5 {[%clk 0:01:49]} 24. Rd1 {[%clk 0:00:18]}  Qc6 {[%clk 0:01:46]} 25. Bg5 {[%clk 0:00:17]}  Re8 {[%clk 0:01:41]} 26. Qc4 {[%clk 0:00:17]}  Bxb2 {[%clk 0:01:34]} 27. a4 {[%clk 0:00:16]}  Qxe4 {[%clk 0:01:28]} 28. Qxe4 {[%clk 0:00:14]}  Rxe4 {[%clk 0:01:29]} 29. Rxd6 {[%clk 0:00:15]}  h6 {[%clk 0:01:25]} 30. Rd8+ {[%clk 0:00:13]}  Kh7 {[%clk 0:01:25]} 31. Bf4 {[%clk 0:00:14]}  Rxa4 {[%clk 0:01:23]} 32. Rd7 {[%clk 0:00:14]}  Bf6 {[%clk 0:01:08]} 33. Rxf7 {[%clk 0:00:12]}  c4 {[%clk 0:01:09]} 34. Rc7 {[%clk 0:00:11]}  c3 {[%clk 0:01:09]} 35. g4 {[%clk 0:00:09]}  b5 {[%clk 0:01:06]} 36. Be3 {[%clk 0:00:06]}  a5 {[%clk 0:01:05]} 37. h4 {[%clk 0:00:06]}  Bxh4 {[%clk 0:01:00]} 38. g5 {[%clk 0:00:05]}  Bxg5 {[%clk 0:00:55]} 39. Bxg5 {[%clk 0:00:05]}  hxg5 {[%clk 0:00:56]} 40. f6 {[%clk 0:00:05]}  Rf4 {[%clk 0:00:53]} 41. Rxg7+ {[%clk 0:00:00]}  Kh6 {[%clk 0:00:53]} 0-1

[Event "December 19 Early 2023"]
[Site "https://www.chess.com"]
[Date "2023.12.19"]
[Round "10"]
[White "Wanyama, Harold"]
[Black "Deveci, Huseyin Said"]
[Result "1-0"]
[Board "125"]
[TimeControl "180+1"]
[WhiteFideId "10000380"]
[BlackFideId "26322455"]
[WhiteElo "2228"]
[BlackElo "1954"]
[WhiteTeam "UGA"]
[BlackTeam "TUR"]
[WhiteClock "0:01:02"]
[BlackClock "0:00:01"]

1. d4 {[%clk 0:03:00]}  d5 {[%clk 0:02:59]} 2. c4 {[%clk 0:02:59]}  c6 {[%clk 0:02:59]} 3. Nf3 {[%clk 0:02:57]}  Nf6 {[%clk 0:02:58]} 4. Nc3 {[%clk 0:02:56]}  dxc4 {[%clk 0:02:57]} 5. a4 {[%clk 0:02:56]}  Bf5 {[%clk 0:02:40]} 6. Ne5 {[%clk 0:02:51]}  Nbd7 {[%clk 0:02:39]} 7. Nxc4 {[%clk 0:02:50]}  Nb6 {[%clk 0:02:39]} 8. Ne5 {[%clk 0:02:50]}  a5 {[%clk 0:02:38]} 9. f3 {[%clk 0:02:49]}  Nfd7 {[%clk 0:01:52]} 10. Nxd7 {[%clk 0:02:41]}  Bxd7 {[%clk 0:01:51]} 11. e4 {[%clk 0:02:41]}  e6 {[%clk 0:01:51]} 12. Bd3 {[%clk 0:02:39]}  c5 {[%clk 0:01:48]} 13. Be3 {[%clk 0:02:35]}  cxd4 {[%clk 0:01:46]} 14. Bxd4 {[%clk 0:02:35]}  Bc6 {[%clk 0:01:43]} 15. Bb5 {[%clk 0:02:33]}  Bxb5 {[%clk 0:01:40]} 16. Nxb5 {[%clk 0:02:32]}  Bb4+ {[%clk 0:01:38]} 17. Kf2 {[%clk 0:02:30]}  O-O {[%clk 0:01:34]} 18. h4 {[%clk 0:02:30]}  Rc8 {[%clk 0:01:15]} 19. Rh3 {[%clk 0:02:27]}  Bc5 {[%clk 0:00:56]} 20. Bxc5 {[%clk 0:02:20]}  Rxc5 {[%clk 0:00:57]} 21. b3 {[%clk 0:02:10]}  Qf6 {[%clk 0:00:46]} 22. Kg1 {[%clk 0:02:03]}  Rd8 {[%clk 0:00:44]} 23. Qe1 {[%clk 0:02:03]}  Qb2 {[%clk 0:00:36]} 24. Rb1 {[%clk 0:01:49]}  Qa2 {[%clk 0:00:15]} 25. Rd1 {[%clk 0:01:49]}  Rdc8 {[%clk 0:00:09]} 26. Qxa5 {[%clk 0:01:43]}  Qxb3 {[%clk 0:00:04]} 27. Ra1 {[%clk 0:01:27]}  Qe3+ {[%clk 0:00:02]} 28. Kh2 {[%clk 0:01:23]}  Nc4 {[%clk 0:00:01]} 29. Qe1 {[%clk 0:01:18]}  Qf4+ {[%clk 0:00:01]} 30. Qg3 {[%clk 0:01:16]}  Qxg3+ {[%clk 0:00:02]} 31. Rxg3 {[%clk 0:01:17]}  Nd2 {[%clk 0:00:02]} 32. Rd1 {[%clk 0:01:13]}  Nb3 {[%clk 0:00:02]} 33. f4 {[%clk 0:01:10]}  Na5 {[%clk 0:00:01]} 34. Nd6 {[%clk 0:01:09]}  Rd8 {[%clk 0:00:01]} 35. e5 {[%clk 0:01:09]}  Nc6 {[%clk 0:00:01]} 36. Rb3 {[%clk 0:01:08]}  b6 {[%clk 0:00:02]} 37. Rxb6 {[%clk 0:01:07]}  Na5 {[%clk 0:00:02]} 38. Rb5 {[%clk 0:01:07]}  Rxb5 {[%clk 0:00:02]} 39. axb5 {[%clk 0:01:08]}  Nb7 {[%clk 0:00:02]} 40. b6 {[%clk 0:01:06]}  Nc5 {[%clk 0:00:01]} 41. Rc1 {[%clk 0:01:04]}  Nd7 {[%clk 0:00:01]} 42. b7 {[%clk 0:01:04]}  f6 {[%clk 0:00:01]} 43. Rc8 {[%clk 0:01:02]} 1-0

[Event "December 19 Early 2023"]
[Site "https://www.chess.com"]
[Date "2023.12.19"]
[Round "10"]
[White "Matveeva, Olga"]
[Black "Fernandez Hernandez, Gerardo"]
[Result "1-0"]
[Board "127"]
[TimeControl "180+1"]
[WhiteFideId "24107018"]
[BlackFideId "2207400"]
[WhiteElo "1883"]
[BlackElo "2269"]
[WhiteTeam "RUS"]
[BlackTeam "ESP"]
[WhiteClock "0:00:50"]
[BlackClock "0:00:00"]

1. d4 {[%clk 0:03:00]}  Nf6 {[%clk 0:02:59]} 2. c4 {[%clk 0:03:00]}  c5 {[%clk 0:02:59]} 3. d5 {[%clk 0:03:00]}  b5 {[%clk 0:02:59]} 4. cxb5 {[%clk 0:03:01]}  a6 {[%clk 0:03:00]} 5. bxa6 {[%clk 0:03:02]}  g6 {[%clk 0:03:00]} 6. Nc3 {[%clk 0:03:02]}  Bg7 {[%clk 0:03:00]} 7. Nf3 {[%clk 0:03:03]}  O-O {[%clk 0:03:00]} 8. g3 {[%clk 0:03:04]}  d6 {[%clk 0:02:53]} 9. Bg2 {[%clk 0:03:04]}  Nxa6 {[%clk 0:02:48]} 10. O-O {[%clk 0:03:02]}  Qb6 {[%clk 0:02:43]} 11. Nd2 {[%clk 0:02:49]}  Bd7 {[%clk 0:02:27]} 12. Rb1 {[%clk 0:02:41]}  Rfb8 {[%clk 0:02:21]} 13. b3 {[%clk 0:02:38]}  Ng4 {[%clk 0:01:44]} 14. Bb2 {[%clk 0:02:36]}  Ne5 {[%clk 0:01:38]} 15. h3 {[%clk 0:02:30]}  Bf5 {[%clk 0:01:34]} 16. e4 {[%clk 0:02:21]}  Bd7 {[%clk 0:01:33]} 17. Qe2 {[%clk 0:02:18]}  Bb5 {[%clk 0:01:29]} 18. Nxb5 {[%clk 0:02:17]}  Qxb5 {[%clk 0:01:29]} 19. Qxb5 {[%clk 0:02:14]}  Rxb5 {[%clk 0:01:30]} 20. f4 {[%clk 0:02:09]}  Nd3 {[%clk 0:01:20]} 21. Bxg7 {[%clk 0:02:09]}  Kxg7 {[%clk 0:01:21]} 22. a4 {[%clk 0:02:04]}  Rb7 {[%clk 0:01:12]} 23. e5 {[%clk 0:02:00]}  Rab8 {[%clk 0:01:01]} 24. exd6 {[%clk 0:01:49]}  exd6 {[%clk 0:01:01]} 25. Nc4 {[%clk 0:01:42]}  Rd8 {[%clk 0:00:31]} 26. a5 {[%clk 0:01:39]}  Rb5 {[%clk 0:00:24]} 27. f5 {[%clk 0:01:36]}  f6 {[%clk 0:00:19]} 28. fxg6 {[%clk 0:01:33]}  hxg6 {[%clk 0:00:20]} 29. Be4 {[%clk 0:01:31]}  Ne5 {[%clk 0:00:18]} 30. Nxe5 {[%clk 0:01:03]}  dxe5 {[%clk 0:00:18]} 31. Ra1 {[%clk 0:00:55]}  Nb4 {[%clk 0:00:17]} 32. a6 {[%clk 0:00:53]}  Ra8 {[%clk 0:00:10]} 33. a7 {[%clk 0:00:51]}  Rb6 {[%clk 0:00:00]} 34. d6 {[%clk 0:00:50]} 1-0